bitfinex/quotes_BTCUSD_20230101
["timestamp","ask_amount","ask_price","bid_price","bid_amount"]
[1672593904040,1.43591011,16600.0,16599.0,3.45829748]
[1672593905031,0.81497011,16600.0,16599.0,3.45829748]
[1672593906344,1.43591011,16600.0,16599.0,3.45829748]
[1672593906851,0.81497011,16600.0,16599.0,3.45829748]
[1672593907355,1.43591011,16600.0,16599.0,3.45829748]
[1672593907606,0.81497011,16600.0,16599.0,3.45829748]
[1672593908337,1.08596361,16600.0,16599.0,3.45829748]
[1672593909095,0.63364699,16600.0,16599.0,3.45829748]
[1672593910540,0.63364699,16600.0,16599.0,3.95440567]
[1672593911028,0.63364699,16600.0,16599.0,3.25440571]
[1672593911269,0.63364699,16600.0,16599.0,2.75829748]
[1672593911780,0.63364699,16600.0,16599.0,3.24072888]
[1672593912075,0.63364699,16600.0,16599.0,3.24072417]
[1672593912323,0.63364699,16600.0,16599.0,3.45829748]
[1672593912566,0.63364699,16600.0,16599.0,3.94072415]
[1672593913552,0.81429487,16600.0,16599.0,3.94072415]
[1672593914530,0.45244158,16600.0,16599.0,3.94072415]
[1672593916011,0.45244158,16600.0,16599.0,3.94065745]
[1672593919772,0.18144808,16600.0,16599.0,3.94065745]
[1672593919995,0.14263752,16600.0,16599.0,3.94065745]
[1672593920244,0.41363102,16600.0,16599.0,3.94065745]
[1672593920758,0.14263752,16600.0,16599.0,3.94065745]
[1672593921724,0.41363102,16600.0,16599.0,3.94065745]
[1672593928644,0.77548431,16600.0,16599.0,3.94065745]
[1672593928895,0.63284679,16600.0,16599.0,3.94065745]
[1672593935080,0.63273045,16600.0,16599.0,3.94065745]
[1672593936748,1.08504707,16600.0,16599.0,3.94065745]
[1672593937253,0.81416991,16600.0,16599.0,3.94065745]
[1672593940061,1.43490679,16600.0,16599.0,3.94065745]
[1672593940313,1.43490695,16600.0,16599.0,3.94065745]
[1672593940567,0.45231662,16600.0,16599.0,3.94065745]
[1672593940819,1.07325662,16600.0,16599.0,3.94065745]
[1672593941581,1.07325662,16600.0,16599.0,2.9482683]
[1672593941833,1.16401424,16600.0,16599.0,2.6482683]
[1672593942349,0.62094,16600.0,16599.0,2.6482683]
[1672593943343,1.10786105,16600.0,16599.0,2.6482683]
[1672593944313,0.48692105,16600.0,16599.0,2.6482683]
[1672593944790,1.10786105,16600.0,16599.0,2.6482683]
[1672593945705,0.48692105,16600.0,16599.0,2.6482683]
[1672593946836,1.10786105,16600.0,16599.0,2.6482683]
[1672593947347,0.48692105,16600.0,16599.0,2.6482683]
[1672593947592,1.10786105,16600.0,16599.0,2.6482683]
[1672593949383,1.07279833,16600.0,16599.0,3.42863769]
[1672593949626,0.45185833,16600.0,16599.0,3.42863769]
[1672593950637,0.45185833,16600.0,16599.0,2.9482683]
[1672593950888,1.07279833,16600.0,16599.0,2.6482683]
[1672593952648,1.07279833,16600.0,16599.0,2.9482683]
[1672593952893,0.45185833,16600.0,16599.0,2.9482683]
[1672593953135,0.45185833,16600.0,16599.0,3.42870055]
[1672593954367,0.81331122,16600.0,16599.0,2.9482683]
[1672593954611,1.07279833,16600.0,16599.0,2.6482683]
[1672593956030,0.81331104,16600.0,16599.0,2.6482683]
[1672593956287,1.43425104,16600.0,16599.0,2.6482683]
[1672593956775,0.81331104,16600.0,16599.0,2.9482683]
[1672593957017,0.81331104,16600.0,16599.0,3.42864034]
[1672593957349,0.81331104,16600.0,16599.0,3.42863286]
[1672593958487,1.43425104,16600.0,16599.0,2.6482683]
[1672593958722,1.07279833,16600.0,16599.0,2.6482683]
[1672593958950,1.07279833,16600.0,16599.0,2.64819919]
[1672593959659,0.45185833,16600.0,16599.0,2.64819919]
[1672593960373,1.07279833,16600.0,16599.0,2.64819919]
[1672593963832,1.49238208,16600.0,16599.0,2.64819919]
[1672593964081,1.04052375,16600.0,16599.0,2.64819919]
[1672593964293,0.41958375,16600.0,16599.0,2.64819919]
[1672593964542,1.49241612,16600.0,16599.0,2.42861806]
[1672593964789,1.49241612,16600.0,16599.0,1.94819919]
[1672593965034,1.49241612,16600.0,16599.0,2.64819919]
[1672593965035,1.04052375,16600.0,16599.0,2.64819919]
[1672593965308,0.41958375,16600.0,16599.0,3.17330289]
[1672593966085,0.4518924,16600.0,16599.0,3.17330289]
[1672593966360,0.81342197,16600.0,16599.0,3.47330289]
[1672593972665,0.20300143,16601.0,16599.0,3.59795448]
[1672593972921,0.20300143,16601.0,16600.0,1.24478392]
[1672593972922,0.27114731,16601.0,16600.0,1.24478392]
[1672593973187,0.0262467,16604.0,16600.0,5.6949997]
[1672593973444,0.0262467,16604.0,16603.0,0.30108]
[1672593973709,0.48948107,16605.0,16604.0,0.5]
[1672593973970,0.48904838,16605.0,16604.0,1.102264]
[1672593974225,0.48904838,16605.0,16603.0,0.6023]
[1672593974226,0.49395134,16604.0,16603.0,0.6023]
[1672593974473,0.7224834,16604.0,16603.0,0.9023]
[1672593974738,0.30860059,16605.0,16603.0,1.35978725]
[1672593974999,0.30860059,16605.0,16604.0,0.87048125]
[1672593975246,0.30860059,16605.0,16604.0,2.71553678]
[1672593975511,0.03767098,16605.0,16604.0,2.71485373]
[1672593975759,0.03767098,16605.0,16604.0,2.93357568]
[1672593976022,0.03767098,16605.0,16604.0,2.48464443]
[1672593976278,0.03767098,16605.0,16604.0,3.08082346]
[1672593976526,0.03767098,16605.0,16604.0,2.62364443]
[1672593976788,0.03767098,16605.0,16604.0,2.18270748]
[1672593977048,0.30860059,16605.0,16604.0,1.88270748]
[1672593977309,0.30960059,16605.0,16604.0,1.88170748]
[1672593977585,0.03767098,16605.0,16604.0,1.74370748]
[1672593977933,0.30960059,16605.0,16604.0,1.88170748]
[1672593978124,0.03767098,16605.0,16604.0,1.74370748]
[1672593978377,0.03867098,16605.0,16604.0,2.64037951]
[1672593978626,0.03867098,16605.0,16604.0,2.75342551]
[1672593979121,0.03767098,16605.0,16604.0,2.61442551]
[1672593979362,0.03867098,16605.0,16604.0,2.75342551]
[1672593980853,0.03767098,16605.0,16604.0,2.07524603]
[1672593981093,0.03867098,16605.0,16604.0,2.47300616]
[1672593981337,0.03867098,16605.0,16604.0,2.33400616]
[1672593981591,0.03967098,16605.0,16604.0,1.91424603]
[1672593981836,0.03767098,16605.0,16604.0,2.37243977]
[1672593982084,0.03867098,16605.0,16604.0,2.51043977]
[1672593982330,0.03867098,16605.0,16604.0,2.35276774]
[1672593982597,0.03767098,16605.0,16604.0,2.16776896]
[1672593982855,0.03867098,16605.0,16604.0,2.76320646]
[1672593983163,0.03867098,16605.0,16604.0,1.89272296]
[1672593983950,0.03767098,16605.0,16604.0,1.75472296]
[1672593984965,0.55910888,16605.0,16604.0,1.74972296]
[1672593985222,0.55910888,16605.0,16604.0,1.199528]
[1672593985468,1.18004888,16605.0,16604.0,0.597264]
[1672593985799,1.18104888,16605.0,16604.0,0.139]
[1672593986265,1.36104792,16605.0,16604.0,0.139]
[1672593986769,1.36004792,16605.0,16603.0,1.13329023]
[1672593987031,0.56010888,16605.0,16604.0,0.139]
[1672593987290,0.56010888,16605.0,16604.0,0.741264]
[1672593987539,0.55910888,16605.0,16604.0,1.102264]
[1672593987784,0.55910888,16605.0,16604.0,0.602264]
[1672593988025,0.55910888,16605.0,16604.0,1.002264]
[1672593988271,0.03767098,16605.0,16604.0,1.302264]
[1672593988513,0.03867098,16605.0,16604.0,2.26947282]
[1672593988769,0.03867098,16605.0,16604.0,2.87173682]
[1672593989271,0.03867098,16605.0,16604.0,2.57061682]
[1672593989500,0.03867098,16605.0,16604.0,2.57099652]
[1672593993050,0.03867098,16605.0,16604.0,2.57061682]
[1672593993296,0.03867098,16605.0,16604.0,2.27061682]
[1672593993536,0.03867098,16605.0,16604.0,2.58888777]
[1672593994271,0.0385573,16605.0,16604.0,2.58926747]
[1672593995266,0.0385573,16605.0,16604.0,2.58888777]
[1672593995507,0.0385573,16605.0,16604.0,2.18888777]
[1672593997752,0.54377348,16605.0,16604.0,1.66179895]
[1672593997999,0.54377348,16605.0,16604.0,1.36179895]
[1672593998264,1.34471252,16605.0,16604.0,1.343528]
[1672593998508,1.61564213,16605.0,16604.0,0.139]
[1672593998756,1.61564213,16605.0,16604.0,0.741264]
[1672593999483,1.16471348,16605.0,16604.0,1.343528]
[1672593999715,1.34471252,16605.0,16604.0,1.343528]
[1672593999947,1.16471348,16605.0,16604.0,1.343528]
[1672594000750,0.0385573,16605.0,16604.0,1.643528]
[1672594001015,0.0385573,16605.0,16604.0,2.75531953]
[1672594001268,0.0385573,16605.0,16604.0,2.26073141]
[1672594003517,0.0385573,16605.0,16604.0,2.86299541]
[1672594008258,0.21855634,16605.0,16604.0,2.86299541]
[1672594009115,0.21855634,16605.0,16604.0,2.56299541]
[1672594009377,0.21855634,16605.0,16604.0,2.86299541]
[1672594011841,0.21855634,16605.0,16604.0,2.97604141]
[1672594012341,0.48948595,16605.0,16604.0,2.97604141]
[1672594012608,0.48948595,16605.0,16604.0,2.97623654]
[1672594013092,0.48948595,16605.0,16604.0,2.86319054]
[1672594013834,0.48948595,16605.0,16604.0,2.86299541]
[1672594014084,0.84965084,16605.0,16604.0,2.86299541]
[1672594014333,0.6696518,16605.0,16604.0,2.86290666]
[1672594014823,0.85027598,16605.0,16604.0,2.86290666]
[1672594015064,0.6696485,16605.0,16604.0,2.86290666]
[1672594015819,0.6696485,16605.0,16604.0,2.97595266]
[1672594016074,0.6696485,16605.0,16604.0,2.86290666]
[1672594016297,1.12112725,16605.0,16604.0,2.86290666]
[1672594017020,0.66957346,16605.0,16604.0,2.86290666]
[1672594017499,1.12112725,16605.0,16604.0,2.86290666]
[1672594018175,0.66957346,16605.0,16604.0,2.86290666]
[1672594019394,1.12112725,16605.0,16604.0,2.86290666]
[1672594019647,1.12112725,16605.0,16604.0,2.86310179]
[1672594019897,0.85020094,16605.0,16604.0,2.86310179]
[1672594021154,0.66963088,16605.0,16604.0,2.86310179]
[1672594021430,0.66963088,16605.0,16604.0,2.97614779]
[1672594021695,0.66963088,16605.0,16604.0,2.86310179]
[1672594021696,0.85028467,16605.0,16604.0,2.86310179]
[1672594021955,0.49011978,16605.0,16604.0,2.86310179]
[1672594022195,0.49011978,16605.0,16604.0,2.97614779]
[1672594022917,0.49011978,16605.0,16604.0,3.35764908]
[1672594022918,0.85028467,16605.0,16604.0,3.35764908]
[1672594023410,0.66963088,16605.0,16604.0,3.35764908]
[1672594024194,0.85032042,16605.0,16604.0,3.35764908]
[1672594024443,0.49015553,16605.0,16604.0,3.47069508]
[1672594024704,0.48515553,16605.0,16604.0,3.47069508]
[1672594026924,0.2141718,16605.0,16604.0,3.47069508]
[1672594027657,0.2141718,16605.0,16604.0,3.35764908]
[1672594027904,0.03348226,16605.0,16604.0,3.47069508]
[1672594029648,0.03348226,16605.0,16604.0,3.45310581]
[1672594029894,1e-08,16605.0,16604.0,4.62240022]
[1672594030150,1e-08,16605.0,16604.0,5.07793703]
[1672594030393,1e-08,16605.0,16604.0,5.07791844]
[1672594030647,1e-08,16605.0,16604.0,3.91714262]
[1672594033698,1e-08,16605.0,16604.0,4.18769395]
[1672594033961,1e-08,16605.0,16604.0,3.91714262]
[1672594034479,1e-08,16605.0,16604.0,4.61714262]
[1672594034716,1e-08,16605.0,16604.0,4.43677507]
[1672594035232,1e-08,16605.0,16604.0,4.61714262]
[1672594036496,1e-08,16605.0,16604.0,5.03230718]
[1672594036768,1e-08,16605.0,16604.0,5.38489885]
[1672594037541,1e-08,16605.0,16604.0,5.2045313]
[1672594038037,0.02655212,16606.0,16604.0,5.06562005]
[1672594038290,0.02655212,16606.0,16605.0,1.300332]
[1672594038632,0.02655212,16606.0,16605.0,3.920053]
[1672594039602,0.02755212,16606.0,16605.0,4.059053]
[1672594040417,0.02755212,16606.0,16605.0,4.51719139]
[1672594042170,0.02755212,16606.0,16605.0,4.50869139]
[1672594042439,0.02755212,16606.0,16605.0,4.50868939]
[1672594042663,0.02755212,16606.0,16605.0,4.39565439]
[1672594042919,0.48704979,16606.0,16605.0,2.645684]
[1672594043174,0.66773933,16606.0,16605.0,2.645684]
[1672594043670,0.66773933,16606.0,16605.0,2.043456]
[1672594043922,1.91952529,16606.0,16605.0,2.043456]
[1672594044176,1.73913841,16606.0,16605.0,2.043456]
[1672594044430,1.29858653,16606.0,16605.0,1.904456]
[1672594044677,1.09986397,16606.0,16605.0,2.035456]
[1672594044931,0.20794024,16606.0,16605.0,2.035456]
[1672594045143,0.02655212,16606.0,16605.0,2.204456]
[1672594045434,0.02755212,16606.0,16605.0,2.337456]
[1672594045686,0.02655212,16606.0,16605.0,3.83120853]
[1672594045924,0.02655212,16606.0,16605.0,3.47088643]
[1672594045925,0.02755212,16606.0,16605.0,3.47088643]
[1672594046473,0.02755212,16606.0,16605.0,3.47108155]
[1672594046953,0.02755212,16606.0,16605.0,3.47088643]
[1672594047755,0.02655212,16606.0,16605.0,3.33888643]
[1672594047999,0.20794024,16606.0,16605.0,3.47088643]
[1672594048240,0.20694024,16606.0,16605.0,3.33888643]
[1672594048481,0.02755212,16606.0,16605.0,3.47088643]
[1672594052192,0.02755212,16606.0,16605.0,3.96329082]
[1672594053191,0.02755212,16606.0,16605.0,3.47076948]
[1672594053438,0.02755212,16606.0,16605.0,3.96317382]
[1672594053675,0.02755212,16606.0,16605.0,3.47076948]
[1672594054216,0.02755212,16606.0,16605.0,3.96317385]
[1672594054457,0.02755212,16606.0,16605.0,3.47076948]
[1672594054957,0.02755212,16606.0,16605.0,3.96317385]
[1672594055208,0.02755212,16606.0,16605.0,4.26428385]
[1672594055466,0.02755212,16606.0,16605.0,4.26420181]
[1672594055967,0.20794024,16606.0,16605.0,3.47076948]
[1672594056727,0.47892397,16606.0,16605.0,3.47076948]
[1672594057204,0.94537795,16606.0,16605.0,3.47076948]
[1672594057439,0.94537795,16606.0,16605.0,2.93856705]
[1672594057737,1.30554284,16606.0,16605.0,2.93856705]
[1672594057988,1.12515472,16606.0,16605.0,2.93856705]
[1672594059250,1.12515472,16606.0,16605.0,2.63856705]
[1672594060494,1.12015472,16606.0,16605.0,2.63856705]
[1672594060737,1.57170851,16606.0,16605.0,2.03633905]
[1672594060991,1.92166478,16606.0,16605.0,2.03633905]
[1672594061239,1.30072478,16606.0,16605.0,2.03633905]
[1672594061958,1.92166478,16606.0,16605.0,2.03633905]
[1672594062743,2.19246222,16606.0,16605.0,2.03633905]
[1672594062992,1.92166478,16606.0,16605.0,2.03633905]
[1672594063228,2.19246667,16606.0,16605.0,2.03633905]
[1672594063470,1.57152667,16606.0,16605.0,2.03633905]
[1672594063714,2.19246667,16606.0,16605.0,2.03633905]
[1672594063955,0.94055989,16606.0,16605.0,2.03633905]
[1672594064199,1.56149989,16606.0,16605.0,2.03633905]
[1672594064936,1.92253234,16606.0,16605.0,2.03633905]
[1672594065705,1.56149989,16606.0,16605.0,2.03633905]
[1672594066723,1.92248774,16606.0,16605.0,2.03633905]
[1672594067181,1.56149989,16606.0,16605.0,2.03633905]
[1672594067440,1.09504591,16606.0,16605.0,0.83188305]
[1672594067699,2.06403983,16606.0,16605.0,0.83188305]
[1672594068189,1.57175809,16606.0,16605.0,0.83188305]
[1672594068691,1.47979568,16606.0,16605.0,0.83188305]
[1672594069234,1.47879568,16606.0,16605.0,0.69988305]
[1672594069482,1.48179568,16606.0,16605.0,0.69988305]
[1672594069742,1.47879568,16606.0,16605.0,0.69988305]
[1672594069988,1.48079568,16606.0,16605.0,0.82388305]
[1672594070467,1.84164422,16606.0,16605.0,0.82388305]
[1672594071982,1.48079568,16606.0,16605.0,0.82388305]
[1672594073469,1.02968385,16606.0,16605.0,0.82388305]
[1672594073709,1.02768385,16606.0,16605.0,0.69988305]
[1672594073949,1.02968385,16606.0,16605.0,0.82388305]
[1672594074197,1.02968385,16606.0,16605.0,0.69988305]
[1672594074198,1.02768385,16606.0,16605.0,0.69988305]
[1672594074445,1.02968385,16606.0,16605.0,0.82388305]
[1672594077939,1.23908985,16606.0,16605.0,0.82388305]
[1672594078184,1.78216409,16606.0,16605.0,0.82388305]
[1672594078682,1.57275809,16606.0,16605.0,0.82388305]
[1672594079696,2.06512159,16606.0,16605.0,0.82388305]
[1672594080450,1.52188322,16606.0,16605.0,0.82388305]
[1672594080944,1.02968385,16606.0,16605.0,0.82388305]
[1672594081686,1.63187485,16606.0,16605.0,0.82388305]
[1672594082898,2.12411515,16606.0,16605.0,0.82388305]
[1672594083162,2.72630632,16606.0,16605.0,0.82388305]
[1672594083412,3.07935939,16606.0,16605.0,0.82388305]
[1672594083709,2.80293246,16606.0,16605.0,0.82388305]
[1672594085522,2.80293246,16606.0,16605.0,0.82378989]
[1672594089010,2.31069199,16606.0,16605.0,0.82378989]
[1672594089280,2.80293172,16606.0,16605.0,0.82378989]
[1672594089800,3.20745911,16606.0,16605.0,0.82378989]
[1672594090285,2.80293172,16606.0,16605.0,0.82378989]
[1672594091072,2.80293162,16606.0,16605.0,0.82378989]
[1672594091326,2.8029317,16606.0,16605.0,0.82378989]
[1672594091567,2.31069199,16606.0,16605.0,0.82378989]
[1672594096504,2.31060441,16606.0,16605.0,0.82378989]
[1672594098018,1.68966441,16606.0,16605.0,0.82378989]
[1672594100544,2.31060441,16606.0,16605.0,0.82378989]
[1672594100799,1.68966441,16606.0,16605.0,0.82378989]
[1672594102763,0.56524167,16606.0,16605.0,0.82378989]
[1672594103018,1.18618167,16606.0,16605.0,0.82378989]
[1672594103266,1.58040378,16606.0,16605.0,0.82378989]
[1672594103505,0.95946378,16606.0,16605.0,0.82378989]
[1672594103745,1.58040378,16606.0,16605.0,0.82378989]
[1672594104017,1.03862665,16606.0,16605.0,0.82378989]
[1672594105260,1.58051834,16606.0,16605.0,0.82378989]
[1672594112170,1.08051834,16606.0,16605.0,0.82378989]
[1672594112423,1.18395457,16606.0,16605.0,0.82378989]
[1672594112672,0.64206288,16606.0,16605.0,0.82378989]
[1672594113148,1.1841467,16606.0,16605.0,0.82378989]
[1672594113854,1.1791467,16606.0,16605.0,0.82378989]
[1672594116666,0.64552005,16606.0,16605.0,0.82378989]
[1672594116913,1.26638905,16606.0,16605.0,0.82378989]
[1672594117889,1.26638905,16606.0,16605.0,1.42601789]
[1672594119390,0.64552005,16606.0,16605.0,1.42601789]
[1672594119649,0.10343623,16606.0,16605.0,1.42601789]
[1672594120190,0.72430523,16606.0,16605.0,1.42601789]
[1672594120453,0.620869,16606.0,16605.0,1.42601789]
[1672594120700,0.57098124,16607.0,16605.0,1.91829719]
[1672594120946,0.57098124,16607.0,16605.0,1.42601789]
[1672594121180,0.620869,16606.0,16605.0,1.91829719]
[1672594121427,0.620869,16606.0,16605.0,1.72601789]
[1672594121682,1.19118424,16607.0,16605.0,1.42601789]
[1672594121950,0.620869,16606.0,16605.0,1.42601789]
[1672594122191,0.620869,16606.0,16605.0,1.30201789]
[1672594122440,0.620869,16606.0,16605.0,1.38401789]
[1672594123140,0.620869,16606.0,16605.0,1.30201789]
[1672594123418,1.16495282,16606.0,16605.0,1.42801789]
[1672594123902,0.622869,16606.0,16605.0,1.42801789]
[1672594124404,1.26636536,16606.0,16605.0,1.42801789]
[1672594124919,1.26636536,16606.0,16605.0,0.82578989]
[1672594126593,0.72428154,16606.0,16605.0,0.82578989]
[1672594129042,1.26636536,16606.0,16605.0,0.82578989]
[1672594134470,1.26636536,16606.0,16605.0,0.82571323]
[1672594134720,0.72428154,16606.0,16605.0,0.82571323]
[1672594135466,1.26641225,16606.0,16605.0,0.82571323]
[1672594136968,0.72428154,16606.0,16605.0,0.82571323]
[1672594138949,2.43000859,16606.0,16605.0,0.82571323]
[1672594140210,2.53992029,16606.0,16605.0,0.82571323]
[1672594140707,1.91905129,16606.0,16605.0,0.82571323]
[1672594140975,2.53992029,16606.0,16605.0,0.82571323]
[1672594142956,1.91905129,16606.0,16605.0,0.82571323]
[1672594143201,2.53992029,16606.0,16605.0,0.82571323]
[1672594144228,2.52992029,16606.0,16605.0,0.82571323]
[1672594144483,1.90905129,16606.0,16605.0,0.82571323]
[1672594144763,2.52992029,16606.0,16605.0,0.82571323]
[1672594144984,2.55431994,16606.0,16605.0,0.82571323]
[1672594152127,1.34993794,16606.0,16605.0,0.82571323]
[1672594152330,2.55431994,16606.0,16605.0,0.82571323]
[1672594153555,2.19177268,16606.0,16605.0,0.82571323]
[1672594153797,2.55431994,16606.0,16605.0,0.82571323]
[1672594154055,1.94306319,16606.0,16605.0,0.82571323]
[1672594154791,1.32219419,16606.0,16605.0,0.82571323]
[1672594155037,2.43518043,16606.0,16605.0,0.82571323]
[1672594156303,3.79371926,16606.0,16605.0,0.82571323]
[1672594156557,3.56215924,16606.0,16605.0,0.82571323]
[1672594157070,3.56215924,16606.0,16605.0,0.69971323]
[1672594157550,3.58615924,16606.0,16605.0,0.70171323]
[1672594157799,3.88615924,16606.0,16605.0,0.002]
[1672594158061,4.33788041,16606.0,16605.0,0.002]
[1672594158562,5.22610101,16606.0,16605.0,0.002]
[1672594158816,0.5,16605.0,16601.0,0.00015]
[1672594159073,1.24314513,16603.0,16601.0,0.70015]
[1672594159323,2.325543,16602.0,16601.0,0.7]
[1672594159692,2.81712978,16602.0,16601.0,0.7]
[1672594160353,3.35822868,16602.0,16601.0,0.7]
[1672594160594,3.37522868,16602.0,16601.0,0.7]
[1672594161355,3.47114591,16602.0,16601.0,0.7]
[1672594162810,4.00280651,16602.0,16601.0,0.7]
[1672594163068,3.46170761,16602.0,16601.0,0.7]
[1672594163320,3.44988374,16602.0,16601.0,0.7]
[1672594163572,4.10046596,16602.0,16601.0,0.7]
[1672594164102,3.47959696,16602.0,16601.0,0.7]
[1672594164350,3.3955036,16602.0,16601.0,0.7]
[1672594164605,3.98601673,16602.0,16601.0,0.7]
[1672594164858,4.60688573,16602.0,16601.0,0.7]
[1672594165144,4.58988573,16602.0,16601.0,0.7]
[1672594165376,4.60188573,16602.0,16601.0,0.741]
[1672594165827,3.98101673,16602.0,16601.0,0.741]
[1672594166030,4.60188573,16602.0,16601.0,0.741]
[1672594166292,3.9928406,16602.0,16601.0,0.741]
[1672594166528,4.60188573,16602.0,16601.0,0.741]
[1672594166736,3.98101673,16602.0,16601.0,0.741]
[1672594166984,4.60188573,16602.0,16601.0,0.741]
[1672594167304,4.71077802,16602.0,16601.0,0.741]
[1672594167561,4.09531291,16602.0,16601.0,0.741]
[1672594167817,4.10713678,16602.0,16601.0,0.741]
[1672594168077,3.9928406,16602.0,16601.0,0.741]
[1672594168599,4.08373426,16602.0,16601.0,0.741]
[1672594168873,3.55207366,16602.0,16601.0,0.741]
[1672594170607,4.09241981,16602.0,16601.0,0.741]
[1672594171866,3.47155081,16602.0,16601.0,0.741]
[1672594172104,4.09241981,16602.0,16601.0,0.741]
[1672594172594,3.60083303,16602.0,16601.0,0.741]
[1672594174584,2.97996403,16602.0,16601.0,0.741]
[1672594174834,3.60083303,16602.0,16601.0,0.741]
[1672594175977,2.97996403,16602.0,16601.0,0.741]
[1672594176221,4.50242356,16602.0,16601.0,0.741]
[1672594176465,3.87111418,16602.0,16601.0,0.741]
[1672594176715,4.48015931,16602.0,16601.0,0.741]
[1672594177454,3.98788001,16602.0,16601.0,0.741]
[1672594177705,4.48015931,16602.0,16601.0,0.741]
[1672594177959,3.98788001,16602.0,16601.0,0.741]
[1672594180486,3.37883488,16602.0,16601.0,0.741]
[1672594180632,3.87111418,16602.0,16601.0,0.741]
[1672594181119,3.97299623,16602.0,16601.0,0.741]
[1672594181335,3.87111418,16602.0,16601.0,0.741]
[1672594181769,3.98552146,16602.0,16601.0,0.741]
[1672594185234,4.59456659,16602.0,16601.0,0.741]
[1672594185476,3.98788001,16602.0,16601.0,0.741]
[1672594186234,4.10449672,16602.0,16601.0,0.741]
[1672594190232,3.69518549,16602.0,16601.0,0.741]
[1672594193185,3.07431649,16602.0,16601.0,0.741]
[1672594193444,3.69518549,16602.0,16601.0,0.74090736]
[1672594194449,3.08614036,16602.0,16601.0,0.74090736]
[1672594194698,3.69566945,16602.0,16601.0,0.74090736]
[1672594195197,3.69566767,16602.0,16601.0,0.74090736]
[1672594195452,3.69566419,16602.0,16601.0,0.74090736]
[1672594196133,3.08614036,16602.0,16601.0,0.74090736]
[1672594196348,3.50493471,16602.0,16601.0,0.74090736]
[1672594197280,3.99721401,16602.0,16601.0,0.74090736]
[1672594199276,3.99721401,16602.0,16601.0,0.80935312]
[1672594201236,3.08614036,16602.0,16601.0,0.80935312]
[1672594201806,1.99173691,16602.0,16601.0,0.80935312]
[1672594202029,0.7685318,16602.0,16601.0,0.80935312]
[1672594202285,1.3894008,16602.0,16601.0,0.80935312]
[1672594202799,1.36821893,16602.0,16601.0,0.80935312]
[1672594203034,1.36321893,16602.0,16601.0,0.80935312]
[1672594203276,1.98408793,16602.0,16601.0,0.80935312]
[1672594203785,0.75301706,16602.0,16601.0,0.80935312]
[1672594204013,0.76088411,16602.0,16601.0,0.80935312]
[1672594204300,0.73882076,16602.0,16601.0,0.80935312]
[1672594204559,1.35968976,16602.0,16601.0,0.80935312]
[1672594204815,0.73882076,16602.0,16601.0,0.80935312]
[1672594205322,1.35968976,16602.0,16601.0,0.80935312]
[1672594205660,0.73882076,16602.0,16601.0,0.80935312]
[1672594205912,1.35968976,16602.0,16601.0,0.80935312]
[1672594206913,1.96202676,16602.0,16601.0,0.80935312]
[1672594208156,1.34115776,16602.0,16601.0,0.80935312]
[1672594208403,1.96202676,16602.0,16601.0,0.80935312]
[1672594208645,1.34115776,16602.0,16601.0,0.80935312]
[1672594208879,1.96202676,16602.0,16601.0,0.80935312]
[1672594209134,1.34115776,16602.0,16601.0,0.80935312]
[1672594211116,1.96202676,16602.0,16601.0,0.80935312]
[1672594211357,1.34115776,16602.0,16601.0,0.80935312]
[1672594213654,1.96202676,16602.0,16601.0,0.80935312]
[1672594213922,1.34115776,16602.0,16601.0,0.10944576]
[1672594214171,1.96202676,16602.0,16601.0,0.10444576]
[1672594214429,1.34115776,16602.0,16601.0,0.10444576]
[1672594214925,1.34115776,16602.0,16601.0,0.80444576]
[1672594221074,1.34115776,16602.0,16601.0,0.10444576]
[1672594221849,1.34115776,16602.0,16601.0,0.80444576]
[1672594227890,1.34115776,16602.0,16601.0,0.10444576]
[1672594228886,1.34115776,16602.0,16601.0,0.80444576]
[1672594230926,0.73095371,16602.0,16601.0,0.80444576]
[1672594231138,1.3410823,16602.0,16601.0,0.80444576]
[1672594234545,0.62212859,16602.0,16601.0,0.80444576]
[1672594234812,0.012,16602.0,16601.0,0.80444576]
[1672594235559,0.55427461,16602.0,16601.0,0.80444576]
[1672594236188,0.55427409,16602.0,16601.0,0.80444576]
[1672594236348,0.012,16602.0,16601.0,0.80444576]
[1672594236862,0.012,16602.0,16601.0,0.80437466]
[1672594237613,0.55425576,16602.0,16601.0,0.80437466]
[1672594238348,0.012,16602.0,16601.0,0.80437466]
[1672594244129,0.12653129,16602.0,16601.0,0.80437466]
[1672594245401,0.73665988,16602.0,16601.0,0.80437466]
[1672594245652,1.35752888,16602.0,16601.0,0.80437466]
[1672594246676,1.33899688,16602.0,16601.0,0.80437466]
[1672594246925,1.95986588,16602.0,16601.0,0.80437466]
[1672594247211,1.33899688,16602.0,16601.0,0.80437466]
[1672594247486,1.95986588,16602.0,16601.0,0.80437466]
[1672594249718,1.33899688,16602.0,16601.0,0.80437466]
[1672594249967,1.95986588,16602.0,16601.0,0.80437466]
[1672594250196,1.33899688,16602.0,16601.0,0.80437466]
[1672594250459,1.95986588,16602.0,16601.0,0.80437466]
[1672594250938,1.33899688,16602.0,16601.0,0.80437466]
[1672594251202,2.15694626,16602.0,16601.0,0.80437466]
[1672594251460,1.95986588,16602.0,16601.0,0.80437466]
[1672594251952,1.84201659,16602.0,16601.0,0.80437466]
[1672594252422,1.22114759,16602.0,16601.0,0.80437466]
[1672594252643,1.34973729,16602.0,16601.0,0.80437466]
[1672594253191,1.59711964,16602.0,16601.0,0.80437466]
[1672594253446,1.34973729,16602.0,16601.0,0.80437466]
[1672594254339,0.72886829,16602.0,16601.0,0.80437466]
[1672594254837,1.34973729,16602.0,16601.0,0.80437466]
[1672594255422,0.72886829,16602.0,16601.0,0.80437466]
[1672594255676,1.34973729,16602.0,16601.0,0.80437466]
[1672594255913,1.84201659,16602.0,16601.0,0.80437466]
[1672594256694,1.34973729,16602.0,16601.0,0.80437466]
[1672594257687,0.72886829,16602.0,16601.0,0.80437466]
[1672594257934,1.34973729,16602.0,16601.0,0.80437466]
[1672594258182,1.84201659,16602.0,16601.0,0.80437466]
[1672594260409,1.22114759,16602.0,16601.0,0.80437466]
[1672594260651,1.84201659,16602.0,16601.0,0.80437466]
[1672594260914,1.84201659,16602.0,16601.0,0.80431005]
[1672594261428,1.34973729,16602.0,16601.0,0.80431005]
[1672594261680,1.22886829,16602.0,16601.0,0.80431005]
[1672594261912,1.84973729,16602.0,16601.0,0.80431005]
[1672594263152,1.22886829,16602.0,16601.0,0.80431005]
[1672594263405,1.34973729,16602.0,16601.0,0.80431005]
[1672594265422,0.72886829,16602.0,16601.0,0.80431005]
[1672594265668,1.34973729,16602.0,16601.0,0.80431005]
[1672594267424,0.72886829,16602.0,16601.0,0.80431005]
[1672594267671,1.95970084,16602.0,16601.0,0.80431005]
[1672594267955,1.95970082,16602.0,16601.0,0.80431005]
[1672594268201,1.33883182,16602.0,16601.0,0.80431005]
[1672594268941,1.33875412,16602.0,16601.0,0.80431005]
[1672594270662,0.73641712,16602.0,16601.0,0.80431005]